[Event "*** Titled Tuesday 3|2 Blitz (Early)"]
[Site "Chess.com"]
[Date "2016.12.06"]
[Round "3"]
[White "JohanSalomon"]
[Black "BillieKimbah"]
[Result "1/2-1/2"]
[WhiteElo "2393"]
[BlackElo "2581"]
[TimeControl "180+2"]
[EndTime "11:38:21 PST"]
[Termination "Game drawn - insufficient material"]

1. Nf3 {[%clk 0:03:01.4]} 1... Nf6 {[%clk 0:02:58.5]} 2. g3 {[%clk 0:03:02.5]}
2... b6 {[%clk 0:02:59.2]} 3. Bg2 {[%clk 0:03:03.4]} 3... Bb7 {[%clk 0:03:00.7]}
4. b3 {[%clk 0:03:04.3]} 4... e6 {[%clk 0:03:01.4]} 5. Bb2 {[%clk 0:03:05.9]}
5... Be7 {[%clk 0:03:02.8]} 6. O-O {[%clk 0:03:07.4]} 6... O-O {[%clk
0:03:04.3]} 7. c4 {[%clk 0:03:06.9]} 7... c5 {[%clk 0:03:05]} 8. Nc3 {[%clk
0:03:06.9]} 8... d6 {[%clk 0:03:02.5]} 9. e3 {[%clk 0:03:08.1]} 9... Nbd7 {[%clk
0:03:03.1]} 10. d4 {[%clk 0:03:08.2]} 10... cxd4 {[%clk 0:03:04]} 11. exd4
{[%clk 0:03:07.6]} 11... Rc8 {[%clk 0:02:58.2]} 12. d5 {[%clk 0:02:48.5]} 12...
e5 {[%clk 0:02:57.8]} 13. a4 {[%clk 0:02:40]} 13... a5 {[%clk 0:02:54.9]} 14.
Nb5 {[%clk 0:02:38.8]} 14... Ra8 {[%clk 0:02:49.4]} 15. Re1 {[%clk 0:02:24.2]}
15... Re8 {[%clk 0:02:49]} 16. Nd2 {[%clk 0:02:19.6]} 16... Nc5 {[%clk
0:02:48.4]} 17. Qe2 {[%clk 0:02:10.9]} 17... Bf8 {[%clk 0:02:40.4]} 18. Ba3
{[%clk 0:01:53.2]} 18... Nfd7 {[%clk 0:02:35.7]} 19. Rab1 {[%clk 0:01:48]} 19...
Bc8 {[%clk 0:02:25.6]} 20. Bh3 {[%clk 0:01:48.9]} 20... Nf6 {[%clk 0:02:22.4]}
21. Bxc8 {[%clk 0:01:48.3]} 21... Qxc8 {[%clk 0:02:22.2]} 22. Kg2 {[%clk
0:01:39.7]} 22... h5 {[%clk 0:02:20]} 23. h3 {[%clk 0:01:40.5]} 23... g6 {[%clk
0:02:20.6]} 24. Bxc5 {[%clk 0:01:41.3]} 24... bxc5 {[%clk 0:02:20.6]} 25. Ne4
{[%clk 0:01:32.3]} 25... Nxe4 {[%clk 0:02:19.5]} 26. Qxe4 {[%clk 0:01:34.2]}
26... f5 {[%clk 0:02:17.6]} 27. Qe2 {[%clk 0:01:33.5]} 27... Qd7 {[%clk
0:02:11.1]} 28. g4 {[%clk 0:01:22.4]} 28... fxg4 {[%clk 0:02:04.7]} 29. hxg4
{[%clk 0:01:24.3]} 29... Re7 {[%clk 0:01:56]} 30. Rh1 {[%clk 0:01:01.1]} 30...
Rg7 {[%clk 0:01:50.5]} 31. Nc3 {[%clk 0:01:00.9]} 31... Be7 {[%clk 0:01:40.5]}
32. Ne4 {[%clk 0:01:00.2]} 32... Rf8 {[%clk 0:01:41.3]} 33. Rbg1 {[%clk
0:00:49.6]} 33... hxg4 {[%clk 0:01:40.3]} 34. Ng3 {[%clk 0:00:41.9]} 34... Rf4
{[%clk 0:01:39.5]} 35. Rh2 {[%clk 0:00:36.9]} 35... e4 {[%clk 0:01:07.4]} 36.
Nxe4 {[%clk 0:00:30]} 36... Qf5 {[%clk 0:00:56.4]} 37. Ng3 {[%clk 0:00:31.2]}
37... Qf6 {[%clk 0:00:56.1]} 38. Kh1 {[%clk 0:00:21.8]} 38... Rf3 {[%clk
0:00:53.6]} 39. Re1 {[%clk 0:00:22.5]} 39... Rxb3 {[%clk 0:00:50.8]} 40. Qxg4
{[%clk 0:00:21.6]} 40... Qf3+ {[%clk 0:00:51.4]} 41. Qxf3 {[%clk 0:00:15.2]}
41... Rxf3 {[%clk 0:00:52.9]} 42. Kg2 {[%clk 0:00:16.7]} 42... Ra3 {[%clk
0:00:51.7]} 43. Reh1 {[%clk 0:00:15.2]} 43... Rxa4 {[%clk 0:00:51.9]} 44. Rh8+
{[%clk 0:00:16.9]} 44... Kf7 {[%clk 0:00:53.2]} 45. Re1 {[%clk 0:00:18.5]} 45...
Rxc4 {[%clk 0:00:52.8]} 46. Re3 {[%clk 0:00:18.6]} 46... Rf4 {[%clk 0:00:43.8]}
47. Ra8 {[%clk 0:00:20.1]} 47... a4 {[%clk 0:00:43.6]} 48. Ra7 {[%clk
0:00:19.3]} 48... Kf8 {[%clk 0:00:43.3]} 49. Ra8+ {[%clk 0:00:20.1]} 49... Kf7
{[%clk 0:00:44.8]} 50. Ra7 {[%clk 0:00:21.3]} 50... Kf6 {[%clk 0:00:46.4]} 51.
Re6+ {[%clk 0:00:21.8]} 51... Kg5 {[%clk 0:00:44.9]} 52. Rexe7 {[%clk
0:00:23.3]} 52... Rxe7 {[%clk 0:00:45.9]} 53. Rxe7 {[%clk 0:00:25.2]} 53... Rd4
{[%clk 0:00:40.1]} 54. Ne4+ {[%clk 0:00:25.8]} 54... Kf4 {[%clk 0:00:39]} 55.
Nc3 {[%clk 0:00:26.6]} 55... Rc4 {[%clk 0:00:33.4]} 56. Ne2+ {[%clk 0:00:27.9]}
56... Kg5 {[%clk 0:00:33.3]} 57. Ra7 {[%clk 0:00:28]} 57... Kf5 {[%clk 0:00:33]}
58. Re7 {[%clk 0:00:22.1]} 58... a3 {[%clk 0:00:30.2]} 59. Ng3+ {[%clk
0:00:23.8]} 59... Kf6 {[%clk 0:00:29.6]} 60. Ra7 {[%clk 0:00:25.5]} 60... Ke5
{[%clk 0:00:29.1]} 61. Rxa3 {[%clk 0:00:25.6]} 61... Kxd5 {[%clk 0:00:30.4]} 62.
Rf3 {[%clk 0:00:26.2]} 62... Rg4 {[%clk 0:00:25.3]} 63. Rf6 {[%clk 0:00:27.2]}
63... c4 {[%clk 0:00:25.4]} 64. Kf3 {[%clk 0:00:28.3]} 64... Rd4 {[%clk
0:00:22.1]} 65. Ne2 {[%clk 0:00:24.6]} 65... Rd3+ {[%clk 0:00:22.6]} 66. Kg2
{[%clk 0:00:26.2]} 66... c3 {[%clk 0:00:22.5]} 67. Nf4+ {[%clk 0:00:27]} 67...
Ke5 {[%clk 0:00:22.9]} 68. Nxd3+ {[%clk 0:00:22.9]} 68... Kxf6 {[%clk 0:00:24]}
69. Kf3 {[%clk 0:00:24.6]} 69... Kf5 {[%clk 0:00:24.2]} 70. Ne1 {[%clk
0:00:25.1]} 70... g5 {[%clk 0:00:14.5]} 71. Nc2 {[%clk 0:00:26.3]} 71... g4+
{[%clk 0:00:12.1]} 72. Ke3 {[%clk 0:00:27.8]} 72... d5 {[%clk 0:00:12.3]} 73.
Nd4+ {[%clk 0:00:27.5]} 73... Ke5 {[%clk 0:00:13.2]} 74. Nc2 {[%clk 0:00:28.3]}
74... Kf5 {[%clk 0:00:14.4]} 75. Ne1 {[%clk 0:00:29.8]} 75... Ke5 {[%clk
0:00:15.3]} 76. Nd3+ {[%clk 0:00:31.4]} 76... Kf5 {[%clk 0:00:16.4]} 77. Nc1
{[%clk 0:00:33.1]} 77... Ke5 {[%clk 0:00:17.6]} 78. Ne2 {[%clk 0:00:34.7]} 78...
c2 {[%clk 0:00:16.9]} 79. Kd2 {[%clk 0:00:36]} 79... Ke4 {[%clk 0:00:17.7]} 80.
Ng1 {[%clk 0:00:37.4]} 80... Kf4 {[%clk 0:00:13.3]} 81. Kxc2 {[%clk 0:00:36.3]}
81... g3 {[%clk 0:00:14.5]} 82. f3 {[%clk 0:00:28.4]} 82... Ke3 {[%clk
0:00:12.8]} 83. Kc3 {[%clk 0:00:25.1]} 83... d4+ {[%clk 0:00:13.7]} 84. Kc2
{[%clk 0:00:25.4]} 84... Kf2 {[%clk 0:00:13.9]} 85. Nh3+ {[%clk 0:00:26.2]}
85... Ke3 {[%clk 0:00:08.6]} 86. f4 {[%clk 0:00:26.2]} 86... Ke2 {[%clk
0:00:06.8]} 87. Ng1+ {[%clk 0:00:26]} 87... Kf2 {[%clk 0:00:07.4]} 88. f5 {[%clk
0:00:26.5]} 88... Kxg1 {[%clk 0:00:08.3]} 89. f6 {[%clk 0:00:27.9]} 89... g2
{[%clk 0:00:09.9]} 90. f7 {[%clk 0:00:29.2]} 90... Kh2 {[%clk 0:00:11.5]} 91.
f8=Q {[%clk 0:00:30.4]} 91... g1=Q {[%clk 0:00:12.2]} 92. Qh8+ {[%clk
0:00:31.7]} 92... Kg2 {[%clk 0:00:13.1]} 93. Qg7+ {[%clk 0:00:33.2]} 93... Kf1
{[%clk 0:00:14.5]} 94. Qxg1+ {[%clk 0:00:33.3]} 94... Kxg1 {[%clk 0:00:15.4]}
95. Kd2 {[%clk 0:00:35]} 95... d3 {[%clk 0:00:15.3]} 96. Kxd3 {[%clk 0:00:36]}
1/2-1/2

[Event "*** Titled Tuesday 3|2 Blitz (Early)"]
[Site "Chess.com"]
[Date "2016.12.06"]
[Round "4"]
[White "Tesla37"]
[Black "jncool68"]
[Result "1-0"]
[WhiteElo "2613"]
[BlackElo "2480"]
[TimeControl "180+2"]
[EndTime "11:44:38 PST"]
[Termination "Tesla37 won by resignation"]

1. e4 {[%clk 0:03:01.9]} 1... c5 {[%clk 0:03:00.3]} 2. Nf3 {[%clk 0:03:02.2]}
2... d6 {[%clk 0:03:01.6]} 3. Nc3 {[%clk 0:03:02.1]} 3... e6 {[%clk 0:03:02.2]}
4. d4 {[%clk 0:03:02.9]} 4... cxd4 {[%clk 0:03:04.1]} 5. Nxd4 {[%clk 0:03:04.2]}
5... Nf6 {[%clk 0:03:05.3]} 6. g4 {[%clk 0:03:05.3]} 6... h6 {[%clk 0:03:06.6]}
7. h3 {[%clk 0:03:06]} 7... a6 {[%clk 0:03:05.1]} 8. Bg2 {[%clk 0:03:06.5]} 8...
Nc6 {[%clk 0:03:05.1]} 9. Be3 {[%clk 0:03:04.4]} 9... Be7 {[%clk 0:03:05.3]} 10.
f4 {[%clk 0:03:02.3]} 10... Nd7 {[%clk 0:03:05.1]} 11. O-O {[%clk 0:03:00.2]}
11... O-O {[%clk 0:02:59]} 12. a4 {[%clk 0:02:59.1]} 12... Nxd4 {[%clk
0:02:57.2]} 13. Qxd4 {[%clk 0:02:58.4]} 13... Qc7 {[%clk 0:02:47.5]} 14. a5
{[%clk 0:02:58.1]} 14... Bf6 {[%clk 0:02:40.4]} 15. Qd2 {[%clk 0:02:57]} 15...
Bxc3 {[%clk 0:02:37.7]} 16. bxc3 {[%clk 0:02:56.4]} 16... Nb8 {[%clk 0:02:27.7]}
17. f5 {[%clk 0:02:55.6]} 17... Nd7 {[%clk 0:01:58.4]} 18. Rfd1 {[%clk
0:02:33.5]} 18... Ne5 {[%clk 0:01:51]} 19. Bb6 {[%clk 0:02:31.7]} 19... Qc6
{[%clk 0:01:46.1]} 20. Qxd6 {[%clk 0:02:29.5]} 20... Qxd6 {[%clk 0:01:47.6]} 21.
Rxd6 {[%clk 0:02:29.6]} 21... Nc4 {[%clk 0:01:48.1]} 22. Rd4 {[%clk 0:02:30.6]}
22... Nxb6 {[%clk 0:01:49.1]} 23. axb6 {[%clk 0:02:31.7]} 23... e5 {[%clk
0:01:50.5]} 24. Rd6 {[%clk 0:02:31]} 24... Re8 {[%clk 0:01:51.2]} 25. c4 {[%clk
0:02:30.3]} 25... Kf8 {[%clk 0:01:51.6]} 26. c5 {[%clk 0:02:31.4]} 26... Ke7
{[%clk 0:01:52.7]} 27. Rad1 {[%clk 0:02:27.6]} 27... a5 {[%clk 0:01:54]} 28. Bf1
{[%clk 0:02:28.7]} 28... a4 {[%clk 0:01:54.8]} 29. Bb5 {[%clk 0:02:29.4]} 29...
a3 {[%clk 0:01:56]} 30. Bxe8 {[%clk 0:02:23.8]} 1-0

[Event "*** Titled Tuesday 3|2 Blitz (Early)"]
[Site "Chess.com"]
[Date "2016.12.06"]
[Round "4"]
[White "pastouche06"]
[Black "jcibarra"]
[Result "0-1"]
[WhiteElo "2304"]
[BlackElo "2622"]
[TimeControl "180+2"]
[EndTime "11:45:33 PST"]
[Termination "jcibarra won by resignation"]

1. d4 {[%clk 0:03:02]} 1... Nf6 {[%clk 0:03:00.4]} 2. c4 {[%clk 0:03:03.2]} 2...
d6 {[%clk 0:03:01.7]} 3. Nc3 {[%clk 0:03:01.1]} 3... e5 {[%clk 0:03:02.6]} 4. d5
{[%clk 0:03:01.6]} 4... Nbd7 {[%clk 0:03:03.5]} 5. e4 {[%clk 0:03:02.5]} 5...
Nc5 {[%clk 0:03:04.8]} 6. f3 {[%clk 0:03:02.3]} 6... a5 {[%clk 0:03:06.1]} 7.
Be3 {[%clk 0:03:00.3]} 7... Nfd7 {[%clk 0:03:07.6]} 8. Qd2 {[%clk 0:02:58.5]}
8... Be7 {[%clk 0:03:09.2]} 9. Nh3 {[%clk 0:02:53.3]} 9... h6 {[%clk 0:03:10]}
10. Be2 {[%clk 0:02:47.1]} 10... c6 {[%clk 0:03:10]} 11. O-O {[%clk 0:02:34.5]}
11... a4 {[%clk 0:03:11.3]} 12. g3 {[%clk 0:02:30]} 12... Qa5 {[%clk 0:03:10.9]}
13. Rab1 {[%clk 0:02:20.4]} 13... Qb4 {[%clk 0:03:11.5]} 14. a3 {[%clk 0:02:13]}
14... Qa5 {[%clk 0:03:12.2]} 15. Nf2 {[%clk 0:02:10.5]} 15... Nb3 {[%clk
0:03:12.6]} 16. Qc2 {[%clk 0:02:08.5]} 16... Bd8 {[%clk 0:03:13.2]} 17. dxc6
{[%clk 0:01:42.3]} 17... bxc6 {[%clk 0:03:13.7]} 18. Rbd1 {[%clk 0:01:43.9]}
18... Bb6 {[%clk 0:03:13.9]} 19. Bxb6 {[%clk 0:01:43.1]} 19... Qxb6 {[%clk
0:03:15.8]} 20. Rxd6 {[%clk 0:01:32.4]} 20... Nd4 {[%clk 0:03:17]} 21. Qd2
{[%clk 0:01:31.7]} 21... Qc5 {[%clk 0:03:18.2]} 22. Rxd7 {[%clk 0:01:21]} 22...
Bxd7 {[%clk 0:03:19.1]} 23. Kg2 {[%clk 0:01:22.5]} 23... O-O {[%clk 0:03:18.8]}
24. Nd3 {[%clk 0:01:23.1]} 24... Qe7 {[%clk 0:03:18.7]} 25. f4 {[%clk
0:01:20.6]} 25... exf4 {[%clk 0:03:15.1]} 26. gxf4 {[%clk 0:01:21.4]} 26... Rfd8
{[%clk 0:03:10.1]} 27. Kh1 {[%clk 0:01:17.4]} 27... Be6 {[%clk 0:03:08]} 28. f5
{[%clk 0:01:09.7]} 28... Bxc4 {[%clk 0:03:07.2]} 29. f6 {[%clk 0:01:11.1]} 29...
Qe6 {[%clk 0:02:54.3]} 30. fxg7 {[%clk 0:00:49.5]} 30... Nxe2 {[%clk 0:02:54.7]}
31. Nxe2 {[%clk 0:00:49.4]} 31... Qxe4+ {[%clk 0:02:52.2]} 0-1

[Event "*** Titled Tuesday 3|2 Blitz (Early)"]
[Site "Chess.com"]
[Date "2016.12.06"]
[Round "4"]
[White "nihalsarin"]
[Black "VladDobrov"]
[Result "1-0"]
[WhiteElo "2499"]
[BlackElo "2594"]
[TimeControl "180+2"]
[EndTime "11:46:56 PST"]
[Termination "nihalsarin won on time"]

1. d4 {[%clk 0:03:02]} 1... Nf6 {[%clk 0:02:54.6]} 2. c4 {[%clk 0:03:02.2]} 2...
e6 {[%clk 0:02:53.6]} 3. Nc3 {[%clk 0:03:03.2]} 3... Bb4 {[%clk 0:02:54.2]} 4.
Qc2 {[%clk 0:03:04.1]} 4... b6 {[%clk 0:02:53.5]} 5. e4 {[%clk 0:03:04.3]} 5...
c5 {[%clk 0:02:54]} 6. d5 {[%clk 0:03:05.1]} 6... Qe7 {[%clk 0:02:53.8]} 7. Be2
{[%clk 0:03:05.6]} 7... exd5 {[%clk 0:02:54.1]} 8. exd5 {[%clk 0:03:06]} 8...
Qe4 {[%clk 0:02:54.7]} 9. Qd2 {[%clk 0:03:05.5]} 9... Qxg2 {[%clk 0:02:49]} 10.
Bf3 {[%clk 0:03:05.3]} 10... Qg6 {[%clk 0:02:49.4]} 11. Nge2 {[%clk 0:03:06.4]}
11... O-O {[%clk 0:02:11.2]} 12. Rg1 {[%clk 0:03:04.7]} 12... Qf5 {[%clk
0:02:12.1]} 13. Qg5 {[%clk 0:03:05.7]} 13... Qxg5 {[%clk 0:02:09.3]} 14. Bxg5
{[%clk 0:03:06.5]} 14... Kh8 {[%clk 0:02:02.4]} 15. Bxf6 {[%clk 0:03:02.5]}
15... gxf6 {[%clk 0:02:04.3]} 16. O-O-O {[%clk 0:03:03.7]} 16... f5 {[%clk
0:01:53.4]} 17. Nb5 {[%clk 0:02:53.2]} 17... Ba6 {[%clk 0:01:31.6]} 18. Nd6
{[%clk 0:02:35.1]} 18... Ba5 {[%clk 0:01:16.6]} 19. Bh5 {[%clk 0:02:20.9]} 19...
h6 {[%clk 0:01:06.3]} 20. Nf4 {[%clk 0:02:05.7]} 20... b5 {[%clk 0:01:03.7]} 21.
Bxf7 {[%clk 0:01:44.8]} 21... Bc7 {[%clk 0:01:04.1]} 22. Ng6+ {[%clk 0:01:40.1]}
22... Kg7 {[%clk 0:01:05.4]} 23. Nxf8+ {[%clk 0:01:41.4]} 23... Kxf8 {[%clk
0:01:06.6]} 24. Rg8+ {[%clk 0:01:42.4]} 24... Ke7 {[%clk 0:01:08]} 25. Re1+
{[%clk 0:01:43.6]} 1-0

[Event "*** Titled Tuesday 3|2 Blitz (Early)"]
[Site "Chess.com"]
[Date "2016.12.06"]
[Round "4"]
[White "Saitama_Hero"]
[Black "MFBerna"]
[Result "1-0"]
[WhiteElo "2153"]
[BlackElo "2200"]
[TimeControl "180+2"]
[EndTime "11:47:53 PST"]
[Termination "Saitama_Hero won by resignation"]

1. e4 {[%clk 0:03:02]} 1... e5 {[%clk 0:03:00.1]} 2. Nf3 {[%clk 0:03:02.9]} 2...
Nc6 {[%clk 0:03:01.4]} 3. d4 {[%clk 0:03:04.4]} 3... exd4 {[%clk 0:03:02.4]} 4.
Nxd4 {[%clk 0:03:06.2]} 4... Bc5 {[%clk 0:03:00.1]} 5. Be3 {[%clk 0:03:07.7]}
5... Qf6 {[%clk 0:03:00.8]} 6. c3 {[%clk 0:03:08.7]} 6... Nge7 {[%clk
0:02:59.8]} 7. Bc4 {[%clk 0:03:09.6]} 7... O-O {[%clk 0:02:54.9]} 8. O-O {[%clk
0:03:08.1]} 8... d6 {[%clk 0:02:49.7]} 9. Bb3 {[%clk 0:02:49.8]} 9... Bb6 {[%clk
0:02:44.9]} 10. Na3 {[%clk 0:02:47.7]} 10... Qg6 {[%clk 0:02:44.5]} 11. Bc2
{[%clk 0:01:45.2]} 11... f5 {[%clk 0:02:28.6]} 12. exf5 {[%clk 0:01:41.5]} 12...
Nxf5 {[%clk 0:02:30.5]} 13. Nc4 {[%clk 0:01:29.3]} 13... Ncxd4 {[%clk
0:02:25.5]} 14. cxd4 {[%clk 0:01:26.8]} 14... Nxe3 {[%clk 0:01:41.7]} 15. fxe3
{[%clk 0:01:28.7]} 15... Rxf1+ {[%clk 0:01:31]} 16. Kxf1 {[%clk 0:01:30.6]}
16... Qf7+ {[%clk 0:01:27.4]} 17. Kg1 {[%clk 0:01:27.1]} 17... Be6 {[%clk
0:01:18.8]} 18. Nd2 {[%clk 0:01:10.4]} 18... c5 {[%clk 0:01:02.8]} 19. Ne4
{[%clk 0:01:10.3]} 19... cxd4 {[%clk 0:01:02.8]} 20. Ng5 {[%clk 0:01:09.1]}
20... Qe7 {[%clk 0:00:41.7]} 21. Bxh7+ {[%clk 0:01:07.1]} 21... Kf8 {[%clk
0:00:33.3]} 22. Qh5 {[%clk 0:01:08.4]} 22... Bc4 {[%clk 0:00:13.4]} 23. Be4
{[%clk 0:00:40.8]} 23... Qf6 {[%clk 0:00:05.7]} 24. Nh7+ {[%clk 0:00:39.2]} 1-0

[Event "*** Titled Tuesday 3|2 Blitz (Early)"]
[Site "Chess.com"]
[Date "2016.12.06"]
[Round "4"]
[White "Morpheus4"]
[Black "WanderingPuppet"]
[Result "0-1"]
[WhiteElo "1944"]
[BlackElo "2304"]
[TimeControl "180+2"]
[EndTime "11:48:00 PST"]
[Termination "WanderingPuppet won on time"]

1. e4 {[%clk 0:02:56.7]} 1... c5 {[%clk 0:02:59.6]} 2. Nf3 {[%clk 0:02:55.1]}
2... d6 {[%clk 0:03:01]} 3. d3 {[%clk 0:02:53.4]} 3... Nc6 {[%clk 0:02:58.4]} 4.
g3 {[%clk 0:02:53.7]} 4... Nf6 {[%clk 0:02:59.9]} 5. Bg2 {[%clk 0:02:53]} 5...
g6 {[%clk 0:03:01.6]} 6. O-O {[%clk 0:02:52.4]} 6... Bg7 {[%clk 0:03:03.2]} 7.
Nbd2 {[%clk 0:02:50.5]} 7... O-O {[%clk 0:03:04.8]} 8. Nc4 {[%clk 0:02:50.2]}
8... Rb8 {[%clk 0:03:06]} 9. a4 {[%clk 0:02:49.9]} 9... e5 {[%clk 0:03:06.5]}
10. Bg5 {[%clk 0:02:46.8]} 10... h6 {[%clk 0:03:08]} 11. Bc1 {[%clk 0:02:38.4]}
11... Be6 {[%clk 0:03:08]} 12. Ne3 {[%clk 0:02:37.9]} 12... d5 {[%clk
0:03:06.7]} 13. exd5 {[%clk 0:02:32.7]} 13... Nxd5 {[%clk 0:03:08.6]} 14. Nc4
{[%clk 0:02:30.6]} 14... Re8 {[%clk 0:03:09.1]} 15. Re1 {[%clk 0:02:28]} 15...
Qc7 {[%clk 0:03:10.4]} 16. h3 {[%clk 0:02:24.5]} 16... Re7 {[%clk 0:03:08.7]}
17. c3 {[%clk 0:02:19.9]} 17... Rbe8 {[%clk 0:03:08.3]} 18. Qc2 {[%clk
0:02:15.9]} 18... b6 {[%clk 0:03:06.8]} 19. Ncd2 {[%clk 0:02:11.8]} 19... Rd8
{[%clk 0:02:59]} 20. Nc4 {[%clk 0:02:03.5]} 20... Bf5 {[%clk 0:02:53.2]} 21. Nh4
{[%clk 0:02:01.6]} 21... Be6 {[%clk 0:02:51.7]} 22. b3 {[%clk 0:01:39.5]} 22...
Nxc3 {[%clk 0:02:44.9]} 23. Bxh6 {[%clk 0:01:29.2]} 23... Bxh6 {[%clk
0:02:30.9]} 24. Qxc3 {[%clk 0:01:29]} 24... Bg7 {[%clk 0:02:31.1]} 25. Qd2
{[%clk 0:01:14.6]} 25... Nd4 {[%clk 0:02:21.9]} 26. Rab1 {[%clk 0:01:08.2]}
26... Nxb3 {[%clk 0:02:19.4]} 27. Rxb3 {[%clk 0:00:56.7]} 27... Bxc4 {[%clk
0:02:20.4]} 28. Rc3 {[%clk 0:00:55.5]} 28... Bd5 {[%clk 0:02:21.1]} 29. Qg5
{[%clk 0:00:40.6]} 29... Bxg2 {[%clk 0:02:17.2]} 30. Nxg2 {[%clk 0:00:35.1]}
30... Rdd7 {[%clk 0:02:14.5]} 31. Ne3 {[%clk 0:00:31.2]} 31... Re6 {[%clk
0:02:13.1]} 32. Ra3 {[%clk 0:00:25.6]} 32... Qd8 {[%clk 0:02:10.4]} 33. Qg4
{[%clk 0:00:13.8]} 33... Red6 {[%clk 0:02:07.4]} 34. Nc4 {[%clk 0:00:09.2]}
34... Rd4 {[%clk 0:02:08.2]} 0-1

[Event "*** Titled Tuesday 3|2 Blitz (Early)"]
[Site "Chess.com"]
[Date "2016.12.06"]
[Round "4"]
[White "ZhuChenChess"]
[Black "Vrolijk"]
[Result "0-1"]
[WhiteElo "2399"]
[BlackElo "2208"]
[TimeControl "180+2"]
[EndTime "11:48:04 PST"]
[Termination "Vrolijk won on time"]

1. d4 {[%clk 0:03:02]} 1... Nf6 {[%clk 0:02:59.9]} 2. c4 {[%clk 0:03:03]} 2...
g6 {[%clk 0:03:01.3]} 3. Nc3 {[%clk 0:03:03.3]} 3... Bg7 {[%clk 0:03:02.5]} 4.
e4 {[%clk 0:03:03.9]} 4... d6 {[%clk 0:03:04]} 5. Nge2 {[%clk 0:03:04.6]} 5...
O-O {[%clk 0:03:02.7]} 6. Ng3 {[%clk 0:03:05.3]} 6... e5 {[%clk 0:02:59.7]} 7.
d5 {[%clk 0:03:05.1]} 7... a5 {[%clk 0:02:52.9]} 8. Be2 {[%clk 0:03:04.1]} 8...
Na6 {[%clk 0:02:53.5]} 9. O-O {[%clk 0:02:35.1]} 9... Nc5 {[%clk 0:02:53.3]} 10.
Be3 {[%clk 0:02:21]} 10... Bd7 {[%clk 0:02:50.1]} 11. h3 {[%clk 0:02:11.9]}
11... c6 {[%clk 0:02:38.6]} 12. Qd2 {[%clk 0:01:17.6]} 12... cxd5 {[%clk
0:02:28.5]} 13. cxd5 {[%clk 0:01:16.7]} 13... h5 {[%clk 0:02:02.1]} 14. Bg5
{[%clk 0:01:10.9]} 14... Qe8 {[%clk 0:01:57.1]} 15. Rae1 {[%clk 0:00:53.8]}
15... b5 {[%clk 0:01:54.9]} 16. Bxf6 {[%clk 0:00:53.5]} 16... Bxf6 {[%clk
0:01:54.6]} 17. Bxh5 {[%clk 0:00:54.2]} 17... Qe7 {[%clk 0:01:32.5]} 18. Be2
{[%clk 0:00:52.6]} 18... b4 {[%clk 0:01:28.7]} 19. Nd1 {[%clk 0:00:52.8]} 19...
Bg5 {[%clk 0:01:29.3]} 20. Qc2 {[%clk 0:00:39.2]} 20... Rac8 {[%clk 0:01:29.1]}
21. Bc4 {[%clk 0:00:35.9]} 21... Bh4 {[%clk 0:00:54.9]} 22. b3 {[%clk
0:00:33.8]} 22... Qg5 {[%clk 0:00:54.6]} 23. Re3 {[%clk 0:00:33.1]} 23... f5
{[%clk 0:00:52.6]} 24. exf5 {[%clk 0:00:23.5]} 24... gxf5 {[%clk 0:00:54.5]} 25.
Qe2 {[%clk 0:00:20.1]} 25... f4 {[%clk 0:00:52.3]} 26. Ne4 {[%clk 0:00:21.1]}
26... Nxe4 {[%clk 0:00:51.2]} 27. Rxe4 {[%clk 0:00:21.9]} 27... f3 {[%clk
0:00:49.7]} 0-1

[Event "*** Titled Tuesday 3|2 Blitz (Early)"]
[Site "Chess.com"]
[Date "2016.12.06"]
[Round "4"]
[White "Evgeny_Levin"]
[Black "VSERGUEI"]
[Result "1-0"]
[WhiteElo "2739"]
[BlackElo "2604"]
[TimeControl "180+2"]
[EndTime "11:48:08 PST"]
[Termination "Evgeny_Levin won on time"]

1. d4 {[%clk 0:03:00]} 1... d5 {[%clk 0:03:00.3]} 2. c4 {[%clk 0:03:00.8]} 2...
c6 {[%clk 0:03:00.8]} 3. Nc3 {[%clk 0:03:00.7]} 3... Nf6 {[%clk 0:03:01]} 4. Nf3
{[%clk 0:02:59.5]} 4... a6 {[%clk 0:03:01.8]} 5. a4 {[%clk 0:02:58.3]} 5... e6
{[%clk 0:02:58.1]} 6. Bg5 {[%clk 0:02:47]} 6... a5 {[%clk 0:02:57.3]} 7. e3
{[%clk 0:02:46.9]} 7... Na6 {[%clk 0:02:53.6]} 8. Rc1 {[%clk 0:02:44.8]} 8...
Be7 {[%clk 0:02:48.7]} 9. Bd3 {[%clk 0:02:36.4]} 9... Nb4 {[%clk 0:02:48.8]} 10.
Bb1 {[%clk 0:02:36.8]} 10... dxc4 {[%clk 0:02:44.6]} 11. O-O {[%clk 0:02:37.5]}
11... b6 {[%clk 0:02:35.8]} 12. Ne5 {[%clk 0:02:35.6]} 12... Ba6 {[%clk
0:02:24.9]} 13. Qf3 {[%clk 0:02:35.3]} 13... Rc8 {[%clk 0:02:21.9]} 14. Ne4
{[%clk 0:02:30.4]} 14... Nd3 {[%clk 0:01:53.2]} 15. Bxd3 {[%clk 0:02:17.6]}
15... cxd3 {[%clk 0:01:52]} 16. Bxf6 {[%clk 0:02:08.9]} 16... gxf6 {[%clk
0:01:22.2]} 17. Nxc6 {[%clk 0:02:08.6]} 17... d2 {[%clk 0:01:15.2]} 18. Nxd2
{[%clk 0:01:53.6]} 18... Qd7 {[%clk 0:00:47]} 19. Rfd1 {[%clk 0:01:53.7]} 19...
Bb7 {[%clk 0:00:27]} 20. d5 {[%clk 0:01:51.9]} 20... Qxd5 {[%clk 0:00:26.8]} 21.
Qxd5 {[%clk 0:01:51.6]} 21... exd5 {[%clk 0:00:26.9]} 22. Nxe7 {[%clk
0:01:52.3]} 22... Kxe7 {[%clk 0:00:25.9]} 23. Nf3 {[%clk 0:01:53.3]} 23... Rc5
{[%clk 0:00:16.3]} 24. Nd4 {[%clk 0:01:33.2]} 24... Rhc8 {[%clk 0:00:15.6]} 25.
Rxc5 {[%clk 0:01:34.2]} 25... bxc5 {[%clk 0:00:15.5]} 26. Nb3 {[%clk 0:01:14.8]}
26... c4 {[%clk 0:00:09.9]} 27. Nxa5 {[%clk 0:01:13.8]} 27... Ba8 {[%clk
0:00:06.9]} 28. b3 {[%clk 0:01:04.7]} 28... c3 {[%clk 0:00:04.9]} 29. Kf1 {[%clk
0:01:01.1]} 29... c2 {[%clk 0:00:02.8]} 30. Rc1 {[%clk 0:01:01.3]} 1-0